fUSD/lending_fUSD_20250225
["ID","MTS","AMOUNT","RATE_DAILY","PERIOD"]
[354471692,1740521458001,-587.73,0.00049589,120]
[354471693,1740521458010,-500.0,0.00049589,120]
[354471694,1740521458019,-636.83,0.00049589,120]
[354471695,1740521458028,-500.0,0.00049589,120]
[354471696,1740521458037,-500.0,0.00049589,120]
[354471697,1740521458046,-1050.9,0.00049589,120]
[354471698,1740521458055,-1153.82,0.00049589,120]
[354471699,1740521458064,-500.0,0.00049589,120]
[354471700,1740521458074,-500.0,0.00049589,120]
[354471701,1740521458084,-1596.29,0.00049589,120]
[354471702,1740521458093,-500.0,0.00049589,120]
[354471703,1740521458103,-500.0,0.00049589,120]
[354471704,1740521458112,-500.0,0.00049589,120]
[354471705,1740521458121,-500.0,0.00049589,120]
[354471706,1740521458131,-500.0,0.00049589,120]
[354471707,1740521458141,-500.0,0.00049589,120]
[354471708,1740521458151,-500.0,0.00049589,120]
[354471709,1740521458161,-1595.44,0.00049589,30]
[354471710,1740521458171,-500.0,0.00049589,120]
[354471711,1740521458180,-500.0,0.00049589,120]
[354471712,1740521458191,-764.33,0.00049589,120]
[354471713,1740521458200,-500.0,0.00049589,120]
[354471714,1740521458210,-500.0,0.00049589,120]
[354471715,1740521458219,-500.0,0.00049589,120]
[354471716,1740521458228,-500.0,0.00049589,120]
[354471717,1740521458238,-1145.81,0.00049589,120]
[354471718,1740521458247,-500.0,0.00049589,120]
[354471719,1740521458256,-500.0,0.00049589,120]
[354471720,1740521458265,-500.0,0.00049589,120]
[354471721,1740521458275,-500.0,0.00049589,120]
[354471722,1740521458284,-1260.81,0.00049589,120]
[354471723,1740521458293,-500.0,0.00049589,120]
[354471724,1740521458302,-500.0,0.00049589,120]
[354471725,1740521458311,-539.75,0.00049589,120]
[354471726,1740521458320,-500.0,0.00049589,120]
[354471727,1740521458330,-3278.23,0.00049589,120]
[354471728,1740521458339,-500.0,0.00049589,120]
[354471729,1740521458349,-2012.74,0.00049589,120]
[354471730,1740521458363,-569.82,0.00049589,120]
[354471731,1740521458373,-500.0,0.00049589,120]
[354471732,1740521458383,-500.0,0.00049589,120]
[354471733,1740521458392,-500.0,0.00049589,120]
[354471734,1740521458403,-1185.82,0.00049589,120]
[354471735,1740521458412,-500.0,0.00049589,120]
[354471736,1740521458422,-500.0,0.00049589,120]
[354471737,1740521458431,-500.0,0.00049589,120]
[354471738,1740521458440,-500.0,0.00049589,120]
[354471739,1740521458449,-500.0,0.00049589,120]
[354471740,1740521458459,-1435.94,0.00049589,120]
[354471741,1740521458468,-500.0,0.00049589,120]
[354471742,1740521458479,-530.56334546,0.00049589,120]
[354471743,1740521458488,-500.0,0.00049589,120]
[354471744,1740521458498,-1000.0,0.00049589,45]
[354471745,1740521458507,-500.0,0.00049589,120]
[354471746,1740521458517,-500.0,0.00049589,30]
[354471747,1740521458526,-500.0,0.00049589,120]
[354471748,1740521458536,-925.14,0.00049589,120]
[354471749,1740521458545,-500.0,0.00049589,120]
[354471750,1740521458555,-500.0,0.00049589,120]
[354471751,1740521458564,-500.0,0.00049589,120]
[354471752,1740521458573,-566.75,0.00049589,120]
[354471753,1740521458583,-1561.46,0.00049589,120]
[354471754,1740521458592,-500.0,0.00049589,120]
[354471755,1740521458602,-500.0,0.00049589,120]
[354471756,1740521458611,-1075.02,0.00049589,120]
[354471757,1740521458621,-500.0,0.00049589,120]
[354471758,1740521458631,-534.47,0.00049589,120]
[354471759,1740521458640,-500.0,0.00049589,120]
[354471760,1740521458649,-500.0,0.00049589,120]
[354471761,1740521458659,-2426.94,0.00049589,120]
[354471762,1740521458669,-500.0,0.00049589,120]
[354471763,1740521458679,-500.0,0.00049589,120]
[354471764,1740521458688,-500.01706183,0.00049589,120]
[354471765,1740521458698,-1296.86,0.00049589,120]
[354471766,1740521458708,-859.75,0.00049589,120]
[354471767,1740521458717,-500.0,0.00049589,120]
[354471768,1740521458727,-500.0,0.00049589,120]
[354471769,1740521458737,-500.0,0.00049589,120]
[354471770,1740521458747,-598.74,0.00049589,120]
[354471771,1740521458757,-500.0,0.00049589,120]
[354471772,1740521458766,-1388.24,0.00049589,120]
[354471773,1740521458781,-500.0,0.00049589,120]
[354471774,1740521458791,-500.0,0.00049589,120]
[354471775,1740521458801,-500.0,0.00049589,120]
[354471776,1740521458811,-688.03,0.00049589,120]
[354471777,1740521458820,-500.0,0.00049589,120]
[354471778,1740521458830,-500.0,0.00049589,120]
[354471779,1740521458839,-500.0,0.00049589,120]
[354471780,1740521458849,-500.0,0.00049589,120]
[354471781,1740521458858,-374.67631814,0.00049589,120]
[354471782,1740521458868,-500.0,0.00049589,120]
[354471783,1740521458878,-500.0,0.00049589,120]
[354471784,1740521458888,-668.38,0.00049589,120]
[354471785,1740521458900,-500.0,0.00049589,120]
[354471786,1740521458910,-500.0,0.00049589,120]
[354471787,1740521458920,-500.0,0.00049589,120]
[354471788,1740521458930,-500.0,0.00049589,120]
[354471789,1740521458939,-500.0,0.00049589,120]
[354471790,1740521458949,-500.0,0.00049589,120]
[354471791,1740521458959,-500.0,0.00049589,120]
[354471792,1740521458972,-2011.58,0.00049589,120]
[354471793,1740521458987,-512.93,0.00049589,120]
[354471794,1740521458996,-1112.04,0.00049589,120]
[354471795,1740521459006,-500.0,0.00049589,120]
[354471796,1740521459015,-500.0,0.00049589,120]
[354471797,1740521459024,-500.0,0.00049589,120]
[354471798,1740521459034,-500.0,0.00049589,120]
[354471799,1740521459043,-554.57,0.00049589,120]
[354471800,1740521459052,-594.39076125,0.00049589,120]
[354471801,1740521459062,-500.0,0.00049589,120]
[354471802,1740521459072,-500.0,0.00049589,120]
[354471803,1740521459082,-500.0,0.00049589,120]
[354471804,1740521459092,-500.0,0.00049589,120]
[354471805,1740521459102,-500.0,0.00049589,120]
[354471806,1740521459111,-500.0,0.00049589,120]
[354471807,1740521459119,-500.0,0.00049589,120]
[354471808,1740521459128,-500.0,0.00049589,120]
[354471809,1740521459137,-500.0,0.00049589,120]
[354471810,1740521459146,-500.0,0.00049589,120]
[354471811,1740521459155,-500.0,0.00049589,120]
[354471812,1740521459163,-630.91,0.00049589,120]
[354471813,1740521459172,-500.0,0.00049589,120]
[354471814,1740521459181,-500.0,0.00049589,120]
[354471815,1740521459190,-500.0,0.00049589,120]
[354471816,1740521459198,-500.0,0.00049589,120]
[354471817,1740521459207,-706.25,0.00049589,120]
[354471818,1740521459216,-768.87,0.00049589,120]
[354471819,1740521459227,-500.0,0.00049589,120]
[354471820,1740521459235,-500.0,0.00049589,120]
[354471821,1740521459245,-582.32,0.00049589,120]
[354471822,1740521459253,-500.0,0.00049589,120]
[354471823,1740521459262,-500.0,0.00049589,120]
[354471824,1740521459270,-1792.37,0.00049589,120]
[354471825,1740521459278,-500.0,0.00049589,120]
[354471826,1740521459287,-1356.63,0.00049589,120]
[354471827,1740521459296,-639.81,0.00049589,120]
[354471828,1740521459305,-500.0,0.00049589,120]
[354471829,1740521459314,-552.42,0.00049589,120]
[354471830,1740521459322,-500.0,0.00049589,120]
[354471831,1740521459330,-500.0,0.00049589,120]
[354471832,1740521459339,-1376.23,0.00049589,120]
[354471833,1740521459348,-556.6,0.00049589,120]
[354471834,1740521459359,-500.0,0.00049589,120]
[354471835,1740521459368,-500.0,0.00049589,120]
[354471836,1740521459377,-1696.67,0.00049589,120]
[354471837,1740521459387,-500.0,0.00049589,120]
[354471838,1740521459396,-500.0,0.00049589,120]
[354471839,1740521459405,-500.0,0.00049589,120]
[354471840,1740521459413,-701.01,0.00049589,120]
[354471841,1740521459422,-500.0,0.00049589,120]
[354471842,1740521459432,-500.0,0.00049589,120]
[354471843,1740521459442,-500.0,0.00049589,120]
[354471844,1740521459451,-505.52,0.00049589,120]
[354471845,1740521459459,-500.0,0.00049589,120]
[354471846,1740521459468,-500.0,0.00049589,120]
[354471847,1740521459476,-500.0,0.00049589,120]
[354471848,1740521459485,-1194.4,0.00049589,120]
[354471849,1740521459494,-557.4,0.00049589,120]
[354471850,1740521459503,-894.25,0.00049589,120]
[354471851,1740521459511,-500.0,0.00049589,120]
[354471852,1740521459521,-500.0,0.00049589,120]
[354471853,1740521459530,-500.0,0.00049589,120]
[354471854,1740521459539,-730.13,0.00049589,120]
[354471855,1740521459548,-500.0,0.00049589,120]
[354471856,1740521459556,-1308.9,0.00049589,120]
[354471857,1740521459564,-500.0,0.00049589,120]
[354471858,1740521459573,-500.0,0.00049589,120]
[354471859,1740521459581,-500.0,0.00049589,120]
[354471860,1740521459589,-1942.76,0.00049589,120]
[354471861,1740521459597,-500.0,0.00049589,120]
[354471862,1740521459605,-1214.68,0.00049589,120]
[354471863,1740521459613,-500.0,0.00049589,120]
[354471864,1740521459622,-1395.7,0.00049589,120]
[354471865,1740521459630,-500.0,0.00049589,120]
[354471866,1740521459638,-500.0,0.00049589,120]
[354471867,1740521459646,-941.7,0.00049589,120]
[354471868,1740521459654,-1317.96,0.00049589,120]
[354471869,1740521459662,-3795.92,0.00049589,120]
[354471870,1740521459670,-500.0,0.00049589,120]
[354471871,1740521459679,-500.0,0.00049589,120]
[354471872,1740521459689,-500.0,0.00049589,120]
[354471873,1740521459698,-500.0,0.00049589,120]
[354471874,1740521459707,-277.10520453,0.00049589,120]
[354471875,1740521459715,-500.0,0.00049589,120]
[354471876,1740521459724,-500.0,0.00049589,120]
[354471877,1740521459733,-200.0,0.00049589,7]
[354471878,1740521459742,-500.0,0.00049589,120]
[354471879,1740521459751,-500.0,0.00049589,120]
[354471880,1740521459760,-1033.8,0.00049589,120]
[354471881,1740521459770,-500.0,0.00049589,120]
[354471882,1740521459779,-500.0,0.00049589,120]
[354471883,1740521459789,-500.0,0.00049589,120]
[354471884,1740521459797,-844.45,0.00049589,120]
[354471885,1740521459806,-500.0,0.00049589,120]
[354471886,1740521459815,-1173.29,0.00049589,120]
[354471887,1740521459825,-500.0,0.00049589,120]
[354471888,1740521459833,-500.0,0.00049589,120]
[354471889,1740521459840,-1289.66,0.00049589,120]
[354471890,1740521459847,-804.37,0.00049589,120]
[354471891,1740521459853,-701.48,0.00049589,120]
[354471892,1740521459860,-1776.95,0.00049589,120]
[354471893,1740521459866,-500.0,0.00049589,120]
[354471894,1740521459873,-500.0,0.00049589,120]
[354471895,1740521459879,-1826.6,0.00049589,120]
[354471896,1740521459886,-500.0,0.00049589,120]
[354471897,1740521459894,-500.0,0.00049589,120]
[354471898,1740521459903,-797.69,0.00049589,120]
[354471899,1740521459912,-500.0,0.00049589,120]
[354471900,1740521459921,-342.64637011,0.00049589,120]
[354471901,1740521459931,-500.0,0.00049589,120]
[354471902,1740521459940,-500.0,0.00049589,120]
[354471903,1740521459948,-500.0,0.00049589,120]
[354471904,1740521459958,-500.0,0.00049589,120]
[354471905,1740521459967,-1794.55,0.00049589,120]
[354471906,1740521459976,-500.0,0.00049589,120]
[354471907,1740521459986,-500.0,0.00049589,120]
[354471908,1740521459995,-939.88,0.00049589,120]
[354471909,1740521460005,-500.0,0.00049589,120]
[354471910,1740521460015,-500.0,0.00049589,120]
[354471911,1740521460024,-500.0,0.00049589,120]
[354471912,1740521460033,-500.0,0.00049589,120]
[354471913,1740521460043,-1351.79,0.00049589,120]
[354471914,1740521460052,-806.9,0.00049589,120]
[354471915,1740521460062,-500.0,0.00049589,120]
[354471916,1740521460072,-500.0,0.00049589,120]
[354471917,1740521460083,-1413.46,0.00049589,120]
[354471918,1740521460094,-2000.0,0.00049589,30]
[354471919,1740521460105,-500.0,0.00049589,120]
[354471920,1740521460114,-500.0,0.00049589,120]
[354471921,1740521460124,-500.0,0.00049589,120]
[354471922,1740521460133,-500.0,0.00049589,120]
[354471923,1740521460143,-500.0,0.00049589,120]
[354471924,1740521460152,-1318.45,0.00049589,120]
[354471925,1740521460161,-500.0,0.00049589,120]
[354471926,1740521460171,-1736.14,0.00049589,120]
[354471927,1740521460181,-500.0,0.00049589,120]
[354471928,1740521460191,-1833.5,0.00049589,120]
[354471929,1740521460202,-1233.88,0.00049589,120]
[354471930,1740521460212,-500.0,0.00049589,120]
[354471931,1740521460221,-500.0,0.00049589,120]
[354471932,1740521460235,-404.43,0.00049589,7]
[354471933,1740521460244,-500.0,0.00049589,120]
[354471934,1740521460254,-500.0,0.00049589,120]
[354471935,1740521460263,-500.0,0.00049589,120]
[354471936,1740521460272,-1080.2,0.00049589,120]
[354471937,1740521460282,-681.94,0.00049589,120]
[354471938,1740521460291,-500.0,0.00049589,120]
[354471939,1740521460301,-1381.85,0.00049589,120]
[354471940,1740521460310,-500.0,0.00049589,120]
[354471941,1740521460319,-500.0,0.00049589,120]
[354471942,1740521460328,-538.64,0.00049589,120]
[354471943,1740521460337,-500.0,0.00049589,120]
[354471944,1740521460352,-500.0,0.00049589,120]
[354471945,1740521460361,-500.0,0.00049589,120]
[354471946,1740521460370,-500.0,0.00049589,120]
[354471947,1740521460379,-2360.8,0.00049589,120]
[354471948,1740521460389,-542.31806918,0.00049589,120]
[354471949,1740521460398,-500.0,0.00049589,120]
[354471950,1740521460407,-677.84,0.00049589,120]
[354471951,1740521460417,-500.0,0.00049589,120]
[354471952,1740521460426,-500.0,0.00049589,120]
[354471953,1740521460436,-590.24,0.00049589,120]
[354471954,1740521460446,-558.68,0.00049589,120]
[354471955,1740521460455,-500.0,0.00049589,120]
[354471956,1740521460464,-500.0,0.00049589,120]
[354471957,1740521460473,-500.0,0.00049589,120]
[354471958,1740521460484,-500.0,0.00049589,120]
[354471959,1740521460493,-500.0,0.00049589,120]
[354471960,1740521460504,-500.0,0.00049589,120]
[354471961,1740521460513,-500.0,0.00049589,120]
[354471962,1740521460522,-2707.25,0.00049589,120]
[354471963,1740521460531,-500.0,0.00049589,120]
[354471964,1740521460541,-628.18,0.00049589,120]
[354471965,1740521460550,-500.0,0.00049589,120]
[354471966,1740521460559,-500.0,0.00049589,120]
[354471967,1740521460568,-500.0,0.00049589,120]
[354471968,1740521460577,-1713.74,0.00049589,120]
[354471969,1740521460586,-1148.76,0.00049589,120]
[354471970,1740521460596,-881.97,0.00049589,120]
[354471971,1740521460606,-1134.19,0.00049589,120]
[354471972,1740521460616,-500.0,0.00049589,120]
[354471973,1740521460626,-928.47,0.00049589,120]
[354471974,1740521460636,-500.0,0.00049589,120]
[354471975,1740521460646,-500.0,0.00049589,120]
[354471976,1740521460656,-500.0,0.00049589,120]
[354471977,1740521460666,-500.0,0.00049589,120]
[354471978,1740521460676,-500.0,0.00049589,120]
[354471979,1740521460685,-500.0,0.00049589,120]
[354471980,1740521460695,-1473.7,0.00049589,120]
[354471981,1740521460705,-1331.35,0.00049589,120]
[354471982,1740521460714,-1114.41897,0.00049589,68]
[354471983,1740521460724,-500.0,0.00049589,120]
[354471984,1740521460734,-500.0,0.00049589,28]
[354471985,1740521460743,-626.47,0.00049589,120]
[354471986,1740521460753,-500.0,0.00049589,120]
[354471987,1740521460763,-500.0,0.00049589,120]
[354471988,1740521460773,-500.0,0.00049589,120]
[354471989,1740521460782,-500.0,0.00049589,120]
[354471990,1740521460793,-684.5,0.00049589,120]
[354471991,1740521460803,-500.0,0.00049589,120]
[354471992,1740521460812,-1195.84,0.00049589,120]
[354471993,1740521460823,-500.0,0.00049589,120]
[354471994,1740521460833,-1191.34,0.00049589,120]
[354471995,1740521460843,-500.0,0.00049589,120]
[354471996,1740521460853,-500.0,0.00049589,120]
[354471997,1740521460864,-2161.31,0.00049589,120]
[354471998,1740521460874,-843.88,0.00049589,120]
[354471999,1740521460884,-500.0,0.00049589,120]
[354472000,1740521460894,-1372.02,0.00049589,120]
[354472001,1740521460904,-500.0,0.00049589,120]
[354472002,1740521460914,-500.0,0.00049589,120]
[354472003,1740521460924,-1709.46,0.00049589,120]
[354472004,1740521460933,-500.0,0.00049589,120]
[354472005,1740521460943,-964.11,0.00049589,120]
[354472006,1740521460953,-500.0,0.00049589,120]
[354472007,1740521460964,-500.0,0.00049589,120]
[354472008,1740521460974,-500.0,0.00049589,120]
[354472009,1740521460985,-934.82,0.00049589,120]
[354472010,1740521460995,-909.48,0.00049589,120]
[354472011,1740521461006,-653.96,0.00049589,120]
[354472012,1740521461016,-500.0,0.00049589,120]
[354472013,1740521461026,-500.0,0.00049589,120]
[354472014,1740521461036,-500.0,0.00049589,120]
[354472015,1740521461046,-850.55,0.00049589,120]
[354472016,1740521461056,-1201.17,0.00049589,120]
[354472017,1740521461066,-631.67,0.00049589,120]
[354472018,1740521461077,-2420.22,0.00049589,120]
[354472019,1740521461087,-1482.88,0.00049589,120]
[354472020,1740521461096,-500.0,0.00049589,120]
[354472021,1740521461106,-500.0,0.00049589,120]
[354472022,1740521461116,-501.56570212,0.00049589,120]
[354472023,1740521461127,-1412.08,0.00049589,120]
[354472024,1740521461136,-500.0,0.00049589,120]
[354472025,1740521461147,-730.48,0.00049589,120]
[354472026,1740521461157,-500.0,0.00049589,120]
[354472027,1740521461167,-500.0,0.00049589,120]
[354472028,1740521461177,-500.0,0.00049589,120]
[354472029,1740521461188,-989.94,0.00049589,120]
[354472030,1740521461197,-1649.2,0.00049589,120]
[354472031,1740521461207,-3239.95,0.00049589,120]
[354472032,1740521461217,-500.0,0.00049589,120]
[354472033,1740521461228,-556.07,0.00049589,120]
[354472034,1740521461238,-1354.72,0.00049589,120]
[354472035,1740521461248,-500.0,0.00049589,120]
[354472036,1740521461258,-1060.73,0.00049589,120]
[354472037,1740521461268,-3389.32,0.00049589,120]
[354472038,1740521461278,-500.0,0.00049589,120]
[354472039,1740521461287,-500.0,0.00049589,120]
[354472040,1740521461297,-505.41017936,0.00049589,120]
[354472041,1740521461307,-500.0,0.00049589,120]
[354472042,1740521461317,-500.0,0.00049589,120]
[354472043,1740521461327,-500.0,0.00049589,120]
[354472044,1740521461337,-789.46,0.00049589,120]
[354472045,1740521461347,-693.09,0.00049589,120]
[354472046,1740521461362,-2476.51,0.00049589,120]
[354472047,1740521461372,-500.0,0.00049589,120]
[354472048,1740521461382,-596.94,0.00049589,120]
[354472049,1740521461392,-3887.81,0.00049589,120]
[354472050,1740521461402,-500.0,0.00049589,120]
[354472051,1740521461413,-500.0,0.00049589,120]
[354472052,1740521461423,-1273.81,0.00049589,7]
[354472053,1740521461435,-2704.58,0.00049589,120]
[354472054,1740521461446,-1228.45,0.00049589,120]
[354472055,1740521461456,-500.0,0.00049589,120]
[354472056,1740521461466,-1628.42,0.00049589,120]
[354472057,1740521461475,-516.76,0.00049589,120]
[354472058,1740521461487,-871.49,0.00049589,120]
[354472059,1740521461497,-1076.65,0.00049589,120]
[354472060,1740521461507,-2469.3,0.00049589,120]
[354472061,1740521461516,-769.89,0.00049589,120]
[354472062,1740521461526,-500.0,0.00049589,120]
[354472063,1740521461536,-500.0,0.00049589,120]
[354472064,1740521461546,-500.0,0.00049589,120]
[354472065,1740521461555,-1863.83,0.00049589,120]
[354472066,1740521461565,-500.0,0.00049589,120]
[354472067,1740521461575,-1665.25,0.00049589,120]
[354472068,1740521461584,-2643.25,0.00049589,120]
[354472069,1740521461594,-500.0,0.00049589,120]
[354472070,1740521461604,-500.0,0.00049589,120]
[354472071,1740521461614,-500.0,0.00049589,120]
[354472072,1740521461624,-500.0,0.00049589,120]
[354472073,1740521461634,-500.0,0.00049589,120]
[354472074,1740521461644,-1902.86,0.00049589,120]
[354472075,1740521461654,-630.02,0.00049589,120]
[354472076,1740521461664,-1773.84,0.00049589,120]
[354472077,1740521461674,-2134.02,0.00049589,120]
[354472078,1740521461684,-1710.54,0.00049589,120]
[354472079,1740521461694,-300.0,0.00049589,7]
[354472080,1740521461704,-500.0,0.00049589,120]
[354472081,1740521461714,-1753.6,0.00049589,120]
[354472082,1740521461725,-500.0,0.00049589,120]
[354472083,1740521461737,-500.0,0.00049589,120]
[354472084,1740521461747,-500.0,0.00049589,120]
[354472085,1740521461757,-500.0,0.00049589,120]
[354472086,1740521461766,-1327.12,0.00049589,120]
[354472087,1740521461776,-1328.05,0.00049589,120]
[354472088,1740521461786,-500.0,0.00049589,120]
[354472089,1740521461796,-500.0,0.00049589,120]
[354472090,1740521461806,-500.0,0.00049589,120]
[354472091,1740521461816,-500.0,0.00049589,120]
[354472092,1740521461826,-1351.95,0.00049589,120]
[354472093,1740521461836,-500.0,0.00049589,120]
[354472094,1740521461846,-1125.22,0.00049589,120]
[354472095,1740521461856,-988.01,0.00049589,120]
[354472096,1740521461866,-613.13,0.00049589,120]
[354472097,1740521461876,-500.0,0.00049589,120]
[354472098,1740521461886,-500.0,0.00049589,120]
[354472099,1740521461896,-500.0,0.00049589,120]
[354472100,1740521461906,-500.0,0.00049589,40]
[354472101,1740521461916,-500.0,0.00049589,120]
[354472102,1740521461926,-500.0,0.00049589,120]
[354472103,1740521461936,-664.39,0.00049589,120]
[354472104,1740521461946,-3085.97,0.00049589,120]
[354472105,1740521461956,-3142.53,0.00049589,120]
[354472106,1740521461966,-4048.91,0.00049589,120]
[354472107,1740521461976,-722.09,0.00049589,120]
[354472108,1740521461986,-500.0,0.00049589,120]
[354472109,1740521461996,-500.0,0.00049589,120]
[354472110,1740521462006,-169.21739197,0.00049589,120]
[354472111,1740521462016,-500.0,0.00049589,120]
[354472112,1740521462026,-2609.05,0.00049589,120]
[354472113,1740521462036,-2230.87,0.00049589,120]
[354472114,1740521462047,-246.95339579,0.00049589,120]
[354472115,1740521462057,-2025.39,0.00049589,120]
[354472116,1740521462067,-502.32580645,0.00049589,120]
[354472117,1740521462077,-500.0,0.00049589,120]
[354472118,1740521462087,-169.19296806,0.00049589,120]
[354472119,1740521462097,-1042.08,0.00049589,120]
[354472120,1740521462107,-1561.59,0.00049589,120]
[354472121,1740521462117,-500.0,0.00049589,120]
[354472122,1740521462128,-500.0,0.00049589,120]
[354472123,1740521462138,-500.0,0.00049589,120]
[354472124,1740521462148,-500.0,0.00049589,120]
[354472125,1740521462158,-500.0,0.00049589,120]
[354472126,1740521462168,-500.0,0.00049589,120]
[354472127,1740521462178,-932.42,0.00049589,120]
[354472128,1740521462188,-500.0,0.00049589,120]
[354472129,1740521462198,-717.07,0.00049589,120]
[354472130,1740521462209,-1602.54,0.00049589,120]
[354472131,1740521462219,-500.0,0.00049589,120]
[354472132,1740521462231,-3760.26,0.00049589,120]
[354472133,1740521462241,-500.0,0.00049589,120]
[354472134,1740521462251,-2631.73,0.00049589,120]
[354472135,1740521462261,-500.0,0.00049589,120]
[354472136,1740521462271,-1733.75,0.00049589,120]
[354472137,1740521462281,-500.0,0.00049589,120]
[354472138,1740521462291,-500.0,0.00049589,120]
[354472139,1740521462301,-3188.38,0.00049589,120]
[354472140,1740521462311,-3151.29,0.00049589,120]
[354472141,1740521462320,-577.86,0.00049589,120]
[354472142,1740521462330,-500.0,0.00049589,120]
[354472143,1740521462339,-1532.29,0.00049589,120]
[354472144,1740521462354,-500.0,0.00049589,120]
[354472145,1740521462364,-524.08700214,0.00049589,120]
[354472146,1740521462373,-500.0,0.00049589,120]
[354472147,1740521462383,-2132.53,0.00049589,120]
[354472148,1740521462394,-1250.59,0.00049589,120]
[354472149,1740521462404,-500.0,0.00049589,120]
[354472150,1740521462415,-500.0,0.00049589,120]
[354472151,1740521462424,-2436.26,0.00049589,120]
[354472152,1740521462435,-500.0,0.00049589,120]
[354472153,1740521462445,-4632.35,0.00049589,120]
[354472154,1740521462455,-500.0,0.00049589,120]
[354472155,1740521462466,-170.36965817,0.00049589,120]
[354472156,1740521462475,-500.0,0.00049589,120]
[354472157,1740521462486,-531.9,0.00049589,120]
[354472158,1740521462496,-500.0,0.00049589,120]
[354472159,1740521462507,-1964.72,0.00049589,120]
[354472160,1740521462517,-2065.94,0.00049589,120]
[354472161,1740521462528,-500.0,0.00049589,120]
[354472162,1740521462538,-668.94,0.00049589,120]
[354472163,1740521462548,-2173.51,0.00049589,120]
[354472164,1740521462558,-571.1,0.00049589,120]
[354472165,1740521462568,-3593.18,0.00049589,120]
[354472166,1740521462578,-1859.84,0.00049589,120]
[354472167,1740521462587,-447.95532276,0.00049589,120]
[354472168,1740521462597,-794.3,0.00049589,120]
[354472169,1740521462606,-500.0,0.00049589,120]
[354472170,1740521462616,-500.0,0.00049589,120]
[354472171,1740521462627,-500.0,0.00049589,120]
[354472172,1740521462637,-1896.99,0.00049589,120]
[354472173,1740521462647,-500.0,0.00049589,120]
[354472174,1740521462656,-1672.4,0.00049589,120]
[354472175,1740521462666,-4255.11,0.00049589,120]
[354472176,1740521462675,-500.0,0.00049589,120]
[354472177,1740521462685,-2788.37,0.00049589,120]
[354472178,1740521462694,-184.77370979,0.00049589,120]
[354472179,1740521462704,-770.88,0.00049589,120]
[354472180,1740521462715,-3722.65,0.00049589,120]
[354472181,1740521462725,-500.0,0.00049589,120]
[354472182,1740521462735,-1229.04,0.00049589,120]
[354472183,1740521462745,-500.0,0.00049589,120]
[354472184,1740521462755,-500.0,0.00049589,120]
[354472185,1740521462764,-775.43,0.00049589,120]
[354472186,1740521462774,-500.0,0.00049589,120]
[354472187,1740521462784,-1714.21,0.00049589,120]
[354472188,1740521462794,-3145.45,0.00049589,120]
[354472189,1740521463075,-2388.31,0.00049589,120]
[354472190,1740521463102,-500.0,0.00049589,120]
[354472191,1740521463113,-6713.73,0.00049589,120]